lending/lending_fUSD_20240911
["ID","MTS","AMOUNT","RATE_DAILY","PERIOD"]
[337753118,1726051291994,174.06,0.00011877,2]
[337753119,1726051309323,324.49,0.00011853,2]
[337753120,1726051317289,163.24,0.00010959,2]
[337753121,1726051322644,1162.34963389,0.0001198,2]
[337753122,1726051329448,250.0,0.00011893,2]
[337753123,1726051366267,-200.0,0.00012041,2]
[337753124,1726051415860,1050.0,0.00011,2]
[337753125,1726051459706,1010.23,0.00010253,2]
[337753126,1726051536175,160.23,0.0001195,2]
[337753127,1726051545833,374.9,0.00011885,2]
[337753128,1726051626134,250.0,0.000119,2]
[337753129,1726051657915,-150.0,0.0001208,2]
[337753130,1726051762337,360.0,0.00011995,2]
[337753131,1726051811154,691.62,0.00011953,2]
[337753139,1726051831558,-21.58121715,0.0001208,2]
[337753140,1726051831568,-500.0,0.0001218,2]
[337753141,1726051831578,-63.01428989,0.0001218,2]
[337753142,1726051831590,-315.40449296,0.0001218,2]
[337753175,1726051839600,-621.58121715,0.0001218,2]
[337753176,1726051839610,-3226.59415746,0.00012201,2]
[337753177,1726051839620,-300.0,0.00012269,2]
[337753178,1726051839630,-1327.59662264,0.00012269,2]
[337753179,1726051839639,-3919.49134968,0.0001227,2]
[337753180,1726051839649,-150.0,0.00012279,2]
[337753181,1726051839658,-84195.53040865,0.0001228,2]
[337753182,1726051839687,-521.49689155,0.0001228,2]
[337753203,1726051844003,-1104.99257711,0.0001228,2]
[337753204,1726051844015,-62482.05408173,0.0001228,2]
[337753205,1726051845758,-589.82295996,0.0001228,2]
[337753206,1726051845770,-308.52858885,0.0001228,2]
[337753207,1726051846333,-568.48333287,0.0001228,2]
[337753208,1726051846345,-29678.09115928,0.0001228,2]
[337753209,1726051846356,-150.0,0.00012301,2]
[337753210,1726051846366,-173.65,0.00012326,2]
[337753211,1726051846376,-499.99,0.00012326,2]
[337753212,1726051846385,-188.77,0.00012453,2]
[337753213,1726051846395,-3226.59415746,0.00012501,2]
[337753214,1726051846405,-1010.23,0.00012517,2]
[337753215,1726051846415,-169.306,0.00012749,2]
[337753216,1726051846426,-167.841,0.00012749,2]
[337753217,1726051846435,-566.38878285,0.000128,2]
[337753218,1726051846445,-963.76774903,0.000128,2]
[337753219,1726051846458,-2406.3416853,0.000128,2]
[337753220,1726051846469,-9875.83264663,0.000128,2]
[337753221,1726051846480,-3226.59415746,0.00012801,2]
[337753222,1726051846490,-765.80919592,0.0001287,2]
[337753224,1726051851289,170.7,0.00010959,2]
[337753225,1726051861808,512.12,0.00010959,2]
[337753226,1726051868416,221.65,0.00010959,2]
[337753227,1726051940346,500.0,0.00011164,2]
[337753228,1726051940685,500.0,0.00011164,2]
[337753229,1726051959675,951.35,0.00010279,2]
[337753230,1726052264788,712.0,0.00011961,2]
[337753231,1726052414250,1631.40836333,0.00011963,2]
[337753232,1726052419418,172.82,0.00011967,2]
[337753233,1726052443768,982.4,0.00010088,2]
[337753234,1726052448328,183.02,0.00010959,2]
[337753235,1726052465421,2034.94,0.00011979,2]
[337753236,1726052477267,188.77,0.00011978,2]
[337753237,1726052525701,9633.53,0.00011947,2]
[337753238,1726052547999,250.0,0.00011988,2]
[337753239,1726052579451,250.0,0.00011988,2]
[337753240,1726052945257,195.16,0.00012003,2]
[337753241,1726052983254,1005.41,0.00010112,2]
[337753247,1726053031919,-172.11,0.00012017,2]
[337753248,1726053031929,-1000.0,0.0001203,2]
[337753249,1726053031938,-250.0,0.00012043,2]
[337753250,1726053031948,-2258.61591024,0.00012178,2]
[337753251,1726053031957,-150.0,0.00012179,2]
[337753252,1726053031967,-1000.0,0.0001218,2]
[337753253,1726053031976,-588.15636598,0.0001218,2]
[337753254,1726053031990,-1223.20287549,0.0001218,2]
[337753255,1726053032001,-505.43097376,0.0001218,2]
[337753259,1726053037731,-2201.98017201,0.0001218,2]
[337753260,1726053037883,-3684.00718386,0.0001218,2]
[337753261,1726053039961,-566.755,0.0001218,2]
[337753262,1726053039976,-327.79212788,0.0001218,2]
[337753322,1726053045837,-2837.91990466,0.0001218,2]
[337753323,1726053054147,155.54,0.00010959,2]
[337753324,1726053086009,250.0,0.00011883,2]
[337753325,1726053093806,250.0,0.00011883,2]
[337753326,1726053100258,297.34,0.00011873,2]
[337753327,1726053103006,500.0,0.00011164,2]
[337753328,1726053138493,341.4,0.00010959,2]
[337753329,1726053144059,251.8636,0.00011917,2]
[337753330,1726053212005,250.0,0.00011866,2]
[337753331,1726053263476,500.0,0.00012,2]
[337753332,1726053263504,391.72,0.00012,2]
[337753333,1726053264237,500.0,0.00012,2]
[337753334,1726053264988,254.34,0.00012,2]
[337753335,1726053402049,200.0,0.00011871,2]
[337753336,1726053457621,500.0,0.000118,2]
[337753337,1726053483194,1021.34,9.953e-05,2]
[337753338,1726053546989,150.87,0.00010959,2]
[337753339,1726053578597,162.12,0.00011852,2]
[337753340,1726053583144,250.0,0.00011852,2]
[337753341,1726053596984,168.25,0.00011852,2]
[337753342,1726053620529,250.0,0.00011852,2]
[337753343,1726053726868,421.39411001,0.00011958,2]
[337753344,1726053801318,250.0,0.00011736,2]
[337753345,1726053914755,151.40216022,0.00011688,2]
[337753346,1726053925173,840.0,0.00011707,2]
[337753347,1726053929976,1040.38793021,0.000101,2]
[337753348,1726054001040,1033.64,9.793e-05,2]
[337753349,1726054019328,14711.89,0.00011708,2]
[337753350,1726054062321,250.0,0.0001171,2]
[337753351,1726054064784,150.24,0.00010959,2]
[337753352,1726054107330,162.16,0.00011769,2]
[337753353,1726054116700,2948.02754917,0.00010998,2]
[337753354,1726054132674,250.0,0.00011709,2]
[337753355,1726054192151,165.63091281,0.0001196,2]
[337753369,1726054231910,-714.46336982,0.00012057,2]
[337753373,1726054231961,-319.17663018,0.00012057,2]
[337753374,1726054231972,-419.60708216,0.0001206,2]
[337753375,1726054231982,-76.21353428,0.0001208,2]
[337753376,1726054231994,-1196.32788,0.0001208,2]
[337753377,1726054232010,-1335.27392991,0.0001208,2]
[337753378,1726054232147,-881.02592697,0.0001208,2]
[337753379,1726054232158,-300.0,0.0001208,2]
[337753380,1726054232170,-960.92161359,0.0001208,2]
[337753381,1726054232181,-2140.79871525,0.0001208,2]
[337753382,1726054232191,-1196.38508307,0.00012179,2]
[337753383,1726054232200,-200.0,0.0001218,2]
[337753384,1726054232210,-2191.70783,0.0001218,2]
[337753385,1726054232219,-200.0,0.0001218,2]
[337753386,1726054232228,-200.0,0.00012302,2]
[337753387,1726054232237,-200.0,0.00012302,2]
[337753388,1726054232246,-2191.70784,0.0001235,2]
[337753389,1726054232256,-200.0,0.00012425,2]
[337753390,1726054232265,-200.0,0.00012425,2]
[337753391,1726054232274,-499.99,0.00012485,2]
[337753392,1726054232283,-3941.91,0.00012485,2]
[337753394,1726054232292,-219.6,0.00012541,2]
[337753395,1726054232302,-509.5205,0.00012541,2]
[337753396,1726054232312,-200.0,0.00012549,2]
[337753397,1726054232321,-200.0,0.00012549,2]
[337753398,1726054232330,-1500.0,0.0001259,2]
[337753399,1726054232340,-150.0,0.00012591,2]
[337753401,1726054232350,-1500.0,0.00012592,2]
[337753403,1726054232359,-299.99,0.00012592,2]
[337753404,1726054232369,-150.0,0.00012594,2]
[337753405,1726054232378,-528.84,0.00012594,2]
[337753406,1726054232387,-1500.0,0.00012603,2]
[337753407,1726054232397,-150.0,0.00012604,2]
[337753408,1726054232406,-1155.00986551,0.00012606,2]
[337753409,1726054232416,-150.0,0.00012606,2]
[337753410,1726054232425,-2032.75431927,0.00012607,2]
[337753411,1726054232434,-1500.0,0.00012609,2]
[337753412,1726054232443,-150.0,0.00012617,2]
[337753413,1726054232452,-150.0,0.00012626,2]
[337753414,1726054232461,-150.0,0.00012629,2]
[337753415,1726054232470,-150.0,0.00012629,2]
[337753416,1726054232479,-150.0,0.00012639,2]
[337753417,1726054232489,-9657.34588488,0.00012641,2]
[337753418,1726054232500,-1706.98,0.00012641,2]
[337753423,1726054237890,-5550.579,0.00012641,2]
[337753424,1726054237922,-564.662132,0.00012641,2]
[337753425,1726054237952,-21779.21936827,0.00012641,2]
[337753426,1726054237967,-1262.14798967,0.00012641,2]
[337753427,1726054237979,-394.12782113,0.00012641,2]
[337753428,1726054237990,-3006.44051846,0.00012641,2]
[337753429,1726054238001,-7442.804616,0.00012641,2]
[337753430,1726054238013,-2107.96685003,0.00012641,2]
[337753431,1726054238024,-585.41820824,0.00012641,2]
[337753432,1726054238107,-9571.39362899,0.00012641,2]
[337753433,1726054238118,-332.21135616,0.00012641,2]
[337753434,1726054238129,-324.13530894,0.00012641,2]
[337753435,1726054238140,-1879.79073718,0.00012641,2]
[337753436,1726054238151,-5000.0,0.00012641,2]
[337753437,1726054238162,-1595.48310882,0.00012641,2]
[337753438,1726054238173,-8928.78405659,0.00012641,2]
[337753439,1726054238184,-4444.48262219,0.00012641,2]
[337753440,1726054238195,-448.7075297,0.00012641,2]
[337753441,1726054238206,-504.46416423,0.00012641,2]
[337753442,1726054238218,-1470.87908501,0.00012641,2]
[337753444,1726054238229,-11441.97601351,0.00012641,2]
[337753446,1726054238239,-150.0,0.00012653,2]
[337753449,1726054238250,-2191.70783,0.0001266,2]
[337753451,1726054238259,-150.0,0.00012662,2]
[337753453,1726054238268,-150.0,0.00012663,2]
[337753455,1726054238277,-150.0,0.00012666,2]
[337753456,1726054238286,-150.0,0.00012669,2]
[337753459,1726054238297,-150.0,0.00012669,2]
[337753461,1726054238307,-200.0,0.00012675,2]
[337753463,1726054238317,-200.0,0.00012675,2]
[337753465,1726054238326,-150.0,0.0001268,2]
[337753467,1726054238335,-150.0,0.00012685,2]
[337753469,1726054238345,-150.0,0.00012685,2]
[337753471,1726054238356,-150.0,0.00012692,2]
[337753473,1726054238366,-4050.49229527,0.00012695,2]
[337753523,1726054239944,-3033.07094716,0.00012695,2]
[337753524,1726054240010,-1050.31925947,0.00012695,2]
[337753525,1726054240021,-284.005,0.00012695,2]
[337753526,1726054240032,-278.90148228,0.00012695,2]
[337753527,1726054240044,-1199.15893761,0.00012695,2]
[337753528,1726054240057,-3999.63877821,0.00012695,2]
[337753529,1726054240066,-170.147,0.00012698,2]
[337753530,1726054240075,-241.454,0.00012698,2]
[337753531,1726054240084,-1500.0,0.00012699,2]
[337753532,1726054240093,-500.0,0.000127,2]
[337753533,1726054240102,-150.0,0.00012707,2]
[337753534,1726054240111,-1500.0,0.00012714,2]
[337753535,1726054240120,-1500.0,0.00012719,2]
[337753536,1726054240129,-150.0,0.00012719,2]
[337753537,1726054240138,-150.0,0.00012724,2]
[337753538,1726054240147,-150.0,0.00012724,2]
[337753539,1726054240156,-1500.0,0.00012747,2]
[337753540,1726054240165,-1500.0,0.00012754,2]
[337753541,1726054240175,-1500.0,0.00012757,2]
[337753542,1726054240184,-150.0,0.00012763,2]
[337753543,1726054240194,-1500.0,0.0001277,2]
[337753544,1726054240203,-1500.0,0.00012775,2]
[337753545,1726054240212,-150.0,0.00012777,2]
[337753546,1726054240221,-150.0,0.00012781,2]
[337753547,1726054240230,-150.0,0.0001279,2]
[337753548,1726054240239,-20656.51925665,0.000128,2]
[337753549,1726054240248,-158.00784755,0.000128,2]
[337753550,1726054240257,-150.0,0.00012806,2]
[337753551,1726054240267,-1500.0,0.00012806,2]
[337753552,1726054240276,-150.0,0.00012815,2]
[337753553,1726054240285,-1500.0,0.00012824,2]
[337753554,1726054240294,-150.0,0.00012829,2]
[337753555,1726054240303,-150.0,0.00012856,2]
[337753556,1726054240312,-255.82175671,0.00012858,2]
[337753557,1726054240322,-2032.75431919,0.00012862,2]
[337753558,1726054240331,-2000.0,0.0001287,2]
[337753559,1726054240340,-200.0,0.0001287,2]
[337753560,1726054240349,-5010.20484965,0.0001288,2]
[337753561,1726054240358,-509.465005,0.000129,2]
[337753562,1726054240367,-158.00784755,0.000129,2]
[337753563,1726054240376,-7500.0,0.000129,2]
[337753564,1726054240385,-304.54606855,0.000129,2]
[337753565,1726054240394,-2191.70784,0.0001297,2]
[337753566,1726054240403,-150.16218299,0.00012973,2]
[337753568,1726054240411,-160.0,0.00012973,2]
[337753570,1726054240421,-194.1741317,0.00012973,2]
[337753572,1726054240430,-150.16218392,0.00012973,2]
[337753574,1726054240438,-150.16218392,0.00012973,2]
[337753576,1726054240447,-200.2162453,0.00012973,2]
[337753578,1726054240456,-155.1675902,0.00012973,2]
[337753579,1726054240465,-160.17299622,0.00012973,2]
[337753581,1726054240474,-154.16650893,0.00012973,2]
[337753583,1726054240483,-160.17299622,0.00012973,2]
[337753585,1726054240492,-515.6669376,0.00012973,2]
[337753587,1726054240502,-150.16218392,0.00012973,2]
[337753589,1726054240511,-160.17299629,0.00012973,2]
[337753590,1726054240520,-160.18896887,0.00012973,2]
[337753591,1726054240529,-500.0,0.00012973,2]
[337753592,1726054240538,-500.0,0.00012979,2]
[337753593,1726054240547,-500.0,0.00012979,2]
[337753594,1726054240557,-522.29829146,0.00012979,2]
[337753595,1726054240566,-41149.5570314,0.0001298,2]
[337753599,1726054240754,-150.56,0.0001299,2]
[337753601,1726054240764,-150.56,0.0001299,2]
[337753603,1726054240774,-773.74126147,0.0001299,2]
[337753605,1726054240784,-773.74126147,0.0001299,2]
[337753606,1726054240793,-773.74126147,0.0001299,2]
[337753607,1726054240802,-354.77561287,0.00012999,2]
[337753608,1726054240810,-5580.61039236,0.00012999,2]
[337753609,1726054240822,-695.95800116,0.00012999,2]
[337753610,1726054240833,-533.82,0.00012999,2]
[337753611,1726054240844,-1335.0,0.00012999,2]
[337753612,1726054240858,-2495.58714316,0.00012999,2]
[337753613,1726054240869,-18022.33453456,0.00012999,2]
[337753614,1726054240878,-200.0,0.00012999,2]
[337753615,1726054240886,-882.0,0.00013,2]
[337753616,1726054240895,-20829.79515294,0.00013,2]
[337753617,1726054240906,-311.6,0.00013,2]
[337753620,1726054243215,-566.35561271,0.00013,2]
[337753621,1726054243226,-4267.32983437,0.00013,2]
[337753622,1726054243235,-34606.91038598,0.00013,2]
[337753623,1726054243248,-12732.91714098,0.00013,2]
[337753624,1726054243259,-38972.44217705,0.00013,2]
[337753625,1726054243270,-473.25526323,0.00013,2]
[337753627,1726054243281,-541766.75750487,0.00013,2]
[337753630,1726054243976,-880242.64438629,0.00013,2]
[337753631,1726054243987,-16890.90505468,0.00013,2]
[337753633,1726054246091,-432.05724792,0.00013,2]
[337753634,1726054246103,-8499.85506002,0.00013,2]
[337753635,1726054246114,-16288.40638518,0.00013,2]
[337753636,1726054246136,-5852.2,0.00013,2]
[337753637,1726054246267,-2066.50353201,0.00013,2]
[337753638,1726054246389,-4011.40893523,0.00013,2]
[337753639,1726054246399,-612.34305062,0.00013,2]
[337753643,1726054517715,988.44,0.00010255,2]
[337753644,1726054603422,210.56,0.00010959,2]
[337753646,1726054700905,250.0,0.00011946,2]
[337753647,1726054913823,177.62,0.00011898,2]
[337753648,1726054997383,250.0,0.00011917,2]
[337753649,1726055019579,1050.0,0.00011,2]
[337753650,1726055066281,250.0,0.00011982,2]
[337753652,1726055104246,993.42,0.00010083,2]
[337753653,1726055144074,237.87,0.0001197,2]
[337753655,1726055196940,194.14,0.00010959,2]
[337753656,1726055274183,1112.45,0.00011921,2]
[337753657,1726055346835,-1000.0,0.00012012,2]
[337753658,1726055346861,-189.67,0.00012012,2]
[337753659,1726055346886,-493.54754872,0.00012012,2]
[337753660,1726055403596,162.04,0.00012002,2]
[337753661,1726055404402,177.62,0.00011935,2]
[337753662,1726055405663,250.0,0.0001194,2]
[337753665,1726055432105,-97.97247136,0.00012012,2]
[337753666,1726055432115,-162.16,0.00012084,2]
[337753667,1726055432125,-492.03963461,0.00012346,2]
[337753668,1726055432137,-501.38036539,0.00012346,2]
[337753669,1726055432147,-178.34,0.00012526,2]
[337753670,1726055432156,-150.0,0.00012575,2]
[337753671,1726055432167,-6709.71365387,0.00012595,2]
[337753672,1726055432179,-4327.38144613,0.00012595,2]
[337753673,1726055432188,-150.0,0.00012599,2]
[337753674,1726055432198,-5192.12844571,0.000126,2]
[337753675,1726055432210,-392.47207133,0.000126,2]
[337753676,1726055432221,-308.90848296,0.000126,2]
[337753677,1726055432231,-2062.3757,0.000126,2]
[337753678,1726055432240,-150.16675316,0.00012673,2]
[337753679,1726055432250,-600.0,0.00012673,2]
[337753680,1726055432259,-500.0,0.00012673,2]
[337753681,1726055432268,-400.38227572,0.00012673,2]
[337753682,1726055432278,-196.12748635,0.00012673,2]
[337753683,1726055432289,-500.0,0.00012673,2]
[337753684,1726055432298,-391.88821597,0.0001269,2]
[337753685,1726055432307,-1075.45,0.0001269,2]
[337753686,1726055432317,-499.99,0.0001269,2]
[337753687,1726055432326,-150.99,0.0001269,2]
[337753688,1726055432336,-2440.49,0.0001269,2]
[337753689,1726055432346,-396.29,0.0001269,2]
[337753690,1726055432355,-500.0,0.00012699,2]
[337753691,1726055432364,-500.88167698,0.00012699,2]
[337753692,1726055432374,-2359.81,0.00012699,2]
[337753693,1726055432387,-19998.801151,0.000127,2]
[337753694,1726055432399,-406.46096392,0.000127,2]
[337753695,1726055432415,-1139.61468,0.000127,2]
[337753696,1726055432428,-404.0,0.000127,2]
[337753697,1726055432439,-21101.30249238,0.000127,2]
[337753698,1726055432452,-555.249,0.000127,2]
[337753699,1726055432464,-4507.06363913,0.000127,2]
[337753700,1726055432476,-7776.89948567,0.000127,2]
[337753701,1726055432487,-3186.53480063,0.000127,2]
[337753702,1726055432499,-6036.6456329,0.000127,2]
[337753703,1726055432514,-2700.0,0.000127,2]
[337753704,1726055432526,-845.87545876,0.000127,2]
[337753705,1726055432538,-1028.79,0.000127,2]
[337753706,1726055432549,-1249.78872132,0.000127,2]
[337753709,1726055438059,-1169.55400002,0.000127,2]
[337753710,1726055438070,-521.17192969,0.000127,2]
[337753711,1726055438164,-1244.54999999,0.000127,2]
[337753712,1726055438175,-26127.69804459,0.000127,2]
[337753713,1726055438184,-30915.42018318,0.000127,2]
[337753714,1726055438270,-150255.87421682,0.000127,2]
[337753715,1726055438279,-421.39411001,0.00012715,2]
[337753716,1726055438288,-215.666,0.00012741,2]
[337753717,1726055438297,-158.428,0.00012741,2]
[337753718,1726055438307,-10000.0,0.00012757,2]
[337753719,1726055438317,-500.0,0.000128,2]
[337753720,1726055438327,-423.38121,0.0001287,2]
[337753721,1726055438337,-152.79080492,0.000129,2]
[337753722,1726055438346,-274.76679836,0.000129,2]
[337753723,1726055438356,-7500.0,0.000129,2]
[337753724,1726055438365,-340.74,0.000129,2]
[337753725,1726055438375,-422.33,0.000129,2]
[337753726,1726055438392,-328.28053857,0.000129,2]
[337753727,1726055438402,-2106.42665743,0.000129,2]
[337753728,1726055438411,-3918.16145594,0.000129,2]
[337753729,1726055438420,-386.87063074,0.0001299,2]
[337753730,1726055438430,-386.87063074,0.0001299,2]
[337753731,1726055438439,-386.87063074,0.0001299,2]
[337753732,1726055438450,-151.98346748,0.00012999,2]
[337753733,1726055438459,-1479.82642066,0.00012999,2]
[337753734,1726055438468,-2266.38089163,0.00012999,2]
[337753735,1726055438477,-828.0,0.00013,2]
[337753736,1726055438487,-12987.54030002,0.00013,2]
[337753737,1726055438496,-2208325.33298396,0.00013,2]
[337753738,1726055438545,-353.01173433,0.00013,2]
[337753739,1726055438558,-526.17759152,0.00013,2]
[337753740,1726055438569,-424.79146568,0.00013,2]
[337753741,1726055440109,-2268.5,0.00012757,2]
[337753742,1726055440121,-608.4720722,0.00012757,2]
[337753743,1726055440132,-1352.59422969,0.00012757,2]
[337753744,1726055440163,-3152.16,0.00012757,2]
[337753745,1726055440174,-645.18180464,0.00012757,2]
[337753746,1726055440218,-1973.09189347,0.00012757,2]
[337753747,1726055440227,-21500.42628606,0.00013,2]
[337753748,1726055440272,-85251.20379356,0.00013,2]
[337753749,1726055440284,-65076.82359592,0.00013,2]
[337753750,1726055440295,-329.94609769,0.00013,2]
[337753751,1726055440306,-3162.60000008,0.00013,2]
[337753752,1726055440327,-1980854.09335689,0.00013,2]
[337753753,1726055440338,-5736345.19428534,0.00013,2]
[337753754,1726055440347,-203459.4235061,0.00013,2]
[337753755,1726055440356,-152.209424,0.00013,2]
[337753756,1726055440366,-846542.69089123,0.00013,2]
[337753757,1726055440377,-151.553345,0.00013,2]
[337753758,1726055440396,-151.331643,0.00013,2]
[337753759,1726055440414,-151.675571,0.00013,2]
[337753760,1726055440424,-151.170992,0.00013,2]
[337753761,1726055440434,-174.684715,0.00013,2]
[337753762,1726055440443,-174.684715,0.00013,2]
[337753763,1726055440452,-174.684715,0.00013,2]
[337753764,1726055440465,-174.684715,0.00013,2]
[337753765,1726055440475,-174.684715,0.00013,2]
[337753766,1726055440485,-174.684715,0.00013,2]
[337753767,1726055440494,-174.684715,0.00013,2]
[337753768,1726055440504,-174.684715,0.00013,2]
[337753769,1726055440513,-174.684715,0.00013,2]
[337753771,1726055440523,-174.684715,0.00013,2]
[337753773,1726055440532,-174.684715,0.00013,2]
[337753775,1726055440542,-174.684715,0.00013,2]
[337753777,1726055440551,-168.620713,0.00013,2]
[337753779,1726055440560,-151.0,0.00013,2]
[337753781,1726055440570,-151.0,0.00013,2]
[337753783,1726055440579,-151.0,0.00013,2]
[337753785,1726055440589,-151.0,0.00013,2]
[337753787,1726055440598,-151.0,0.00013,2]
[337753789,1726055440607,-151.0,0.00013,2]
[337753791,1726055440617,-151.0,0.00013,2]
[337753793,1726055440626,-151.26879,0.00013,2]
[337753795,1726055440635,-151.0,0.00013,2]
[337753797,1726055440645,-151.170324,0.00013,2]
[337753799,1726055440654,-151.0,0.00013,2]
[337753800,1726055440663,-151.0,0.00013,2]
[337753802,1726055440672,-151.0,0.00013,2]
[337753804,1726055440682,-151.0,0.00013,2]
[337753806,1726055440691,-151.0,0.00013,2]
[337753808,1726055440701,-151.0,0.00013,2]
[337753810,1726055440711,-151.0,0.00013,2]
[337753812,1726055440720,-151.0,0.00013,2]
[337753814,1726055440729,-151.0,0.00013,2]
[337753816,1726055440738,-151.0,0.00013,2]
[337753818,1726055440748,-151.0,0.00013,2]
[337753820,1726055440757,-151.0,0.00013,2]
[337753822,1726055440766,-151.0,0.00013,2]
[337753824,1726055440775,-151.0,0.00013,2]
[337753826,1726055440784,-151.0,0.00013,2]
[337753828,1726055440794,-151.0,0.00013,2]
[337753829,1726055440803,-151.0,0.00013,2]
[337753831,1726055440812,-151.0,0.00013,2]
[337753833,1726055440821,-151.0,0.00013,2]
[337753835,1726055440830,-263.960845,0.00013,2]
[337753837,1726055440840,-165.276736,0.00013,2]
[337753839,1726055440849,-165.276736,0.00013,2]
[337753841,1726055440859,-165.276736,0.00013,2]
[337753843,1726055440868,-165.276736,0.00013,2]
[337753845,1726055440878,-165.276736,0.00013,2]
[337753847,1726055440888,-165.276736,0.00013,2]
[337753849,1726055440898,-165.276736,0.00013,2]
[337753851,1726055440907,-165.276736,0.00013,2]
[337753853,1726055440917,-151.0,0.00013,2]
[337753855,1726055440926,-151.0,0.00013,2]
[337753857,1726055440936,-151.0,0.00013,2]
[337753859,1726055440945,-151.0,0.00013,2]
[337753861,1726055440954,-151.0,0.00013,2]
[337753863,1726055440963,-151.0,0.00013,2]
[337753865,1726055440973,-151.0,0.00013,2]
[337753867,1726055440982,-151.0,0.00013,2]
[337753869,1726055440991,-151.0,0.00013,2]
[337753871,1726055441001,-151.0,0.00013,2]
[337753873,1726055441010,-151.0,0.00013,2]
[337753875,1726055441020,-229.530808,0.00013,2]
[337753877,1726055441029,-151.0,0.00013,2]
[337753879,1726055441039,-151.0,0.00013,2]
[337753881,1726055441048,-151.0,0.00013,2]
[337753882,1726055441057,-235.66511323,0.00013,2]
[337753884,1726055441067,-151.0,0.00013,2]
[337753886,1726055441077,-151.0,0.00013,2]
[337753888,1726055441087,-296.605465,0.00013,2]
[337753890,1726055441096,-151.0,0.00013,2]
[337753892,1726055441105,-151.0,0.00013,2]
[337753894,1726055441115,-151.0,0.00013,2]
[337753896,1726055441124,-151.0,0.00013,2]
[337753898,1726055441134,-367.414364,0.00013,2]
[337753900,1726055441143,-367.414364,0.00013,2]
[337753902,1726055441152,-367.414364,0.00013,2]
[337753904,1726055441163,-367.414364,0.00013,2]
[337753906,1726055441173,-367.414364,0.00013,2]
[337753908,1726055441182,-367.414364,0.00013,2]
[337753910,1726055441192,-367.414364,0.00013,2]
[337753912,1726055441202,-367.414364,0.00013,2]
[337753914,1726055441211,-1001.59347023,0.00013,2]
[337753916,1726055441222,-161.395675,0.00013,2]
[337753918,1726055441233,-151.0,0.00013,2]
[337753920,1726055441244,-151.0,0.00013,2]
[337753922,1726055441255,-151.0,0.00013,2]
[337753924,1726055441266,-151.0,0.00013,2]
[337753926,1726055441277,-151.0,0.00013,2]
[337753928,1726055441287,-151.0,0.00013,2]
[337753930,1726055441297,-151.0,0.00013,2]
[337753932,1726055441308,-151.0,0.00013,2]
[337753934,1726055441318,-151.0,0.00013,2]
[337753936,1726055441328,-151.0,0.00013,2]
[337753938,1726055441339,-151.0,0.00013,2]
[337753940,1726055441349,-151.0,0.00013,2]
[337753942,1726055441359,-246.282798,0.00013,2]
[337753944,1726055441369,-246.282798,0.00013,2]
[337753946,1726055441382,-246.282798,0.00013,2]
[337753948,1726055441392,-246.282798,0.00013,2]
[337753950,1726055441401,-246.282798,0.00013,2]
[337753952,1726055441411,-246.282798,0.00013,2]
[337753954,1726055441421,-246.282798,0.00013,2]
[337753956,1726055441430,-246.282798,0.00013,2]
[337753958,1726055441440,-431.099092,0.00013,2]